bitfinex/quotes_BTCUSD_20250822
["timestamp","ask_amount","ask_price","bid_price","bid_amount"]
[1755874362075,1.11724549,116190.0,116180.0,0.00449048]
[1755874362293,0.52086562,116190.0,116180.0,0.00449048]
[1755874362527,1.12042549,116190.0,116180.0,0.00449048]
[1755874363159,0.94829364,116190.0,116180.0,0.00449048]
[1755874363374,1.12042549,116190.0,116180.0,0.00449048]
[1755874363610,0.35691377,116190.0,116180.0,0.00449048]
[1755874364041,0.16334475,116190.0,116180.0,0.00449048]
[1755874364260,0.33946475,116190.0,116180.0,0.00449048]
[1755874365433,0.37841122,116190.0,116180.0,0.00449048]
[1755874365861,0.33946475,116190.0,116180.0,0.00449048]
[1755874366080,0.34046475,116190.0,116180.0,0.00449048]
[1755874366288,0.16434475,116190.0,116180.0,0.00449048]
[1755874366500,0.34046475,116190.0,116180.0,0.00449048]
[1755874367858,0.25354,116190.0,116180.0,0.00449048]
[1755874368790,0.34042475,116190.0,116180.0,0.00449048]
[1755874369005,0.5125566,116190.0,116180.0,0.00449048]
[1755874369230,1.12638549,116190.0,116180.0,0.00449048]
[1755874370541,0.35787377,116190.0,116180.0,0.00449048]
[1755874370759,0.16434475,116190.0,116180.0,0.00449048]
[1755874371221,0.07216,116190.0,116180.0,0.00662048]
[1755874371454,0.24824,116190.0,116180.0,0.00970048]
[1755874371690,0.24824,116190.0,116180.0,0.00662048]
[1755874371917,0.24824,116190.0,116180.0,0.00449048]
[1755874371918,0.2503,116190.0,116180.0,0.00449048]
[1755874372134,0.25351,116190.0,116180.0,0.00449048]
[1755874372345,0.24751,116190.0,116180.0,0.00449048]
[1755874372576,0.06716,116190.0,116180.0,0.00662048]
[1755874372806,0.2432,116190.0,116180.0,0.60608035]
[1755874373030,0.2422,116190.0,116180.0,0.60608035]
[1755874373257,0.2422,116190.0,116180.0,0.09658523]
[1755874374366,0.2422,116190.0,116180.0,0.10058523]
[1755874374585,0.2422,116190.0,116180.0,0.86911176]
[1755874374808,0.2422,116190.0,116180.0,0.6929651]
[1755874375029,0.2422,116190.0,116180.0,0.88271909]
[1755874375030,0.177,116190.0,116180.0,0.88271909]
[1755874375251,0.177,116190.0,116180.0,0.87411176]
[1755874375664,0.177,116190.0,116180.0,0.31731029]
[1755874375908,0.177,116190.0,116180.0,0.91369016]
[1755874376125,0.177,116190.0,116180.0,0.14516363]
[1755874376358,0.177,116190.0,116180.0,0.14816363]
[1755874376568,0.177,116190.0,116180.0,0.10858523]
[1755874377001,0.177,116190.0,116180.0,0.10550523]
[1755874377221,0.177,116190.0,116180.0,0.10858523]
[1755874377433,0.177,116190.0,116180.0,0.10550523]
[1755874377643,0.001,116190.0,116180.0,0.10858523]
[1755874377833,0.177,116190.0,116180.0,0.7049651]
[1755874378345,0.177,116190.0,116180.0,0.10858523]
[1755874378530,0.177,116190.0,116180.0,0.28073189]
[1755874378772,0.001,116190.0,116180.0,0.87711176]
[1755874378985,0.001,116190.0,116180.0,1.27422451]
[1755874379845,0.001,116190.0,116180.0,0.67784464]
[1755874380061,0.001,116190.0,116180.0,1.27122451]
[1755874380258,0.001,116190.0,116180.0,1.26222451]
[1755874380561,0.00014478,116210.0,116190.0,0.51212975]
[1755874380773,0.00014478,116210.0,116200.0,0.68539462]
[1755874381212,0.00014478,116210.0,116200.0,0.86059165]
[1755874381439,0.00014478,116210.0,116200.0,0.09209475]
[1755874381630,0.00014478,116210.0,116200.0,0.68847462]
[1755874382106,0.00014478,116210.0,116200.0,0.68897462]
[1755874382541,0.00014478,116210.0,116200.0,0.70259048]
[1755874382771,0.00014478,116210.0,116200.0,0.09151475]
[1755874383412,0.00220478,116210.0,116200.0,0.08938475]
[1755874383625,0.00014478,116210.0,116200.0,0.09151475]
[1755874383835,0.00014478,116210.0,116200.0,0.69612608]
[1755874384049,0.00014478,116210.0,116200.0,0.69097462]
[1755874384287,0.00014478,116210.0,116200.0,0.09559475]
[1755874384458,0.00014478,116210.0,116200.0,0.86839457]
[1755874384693,0.00014478,116210.0,116200.0,0.26771178]
[1755874384902,0.00014478,116210.0,116200.0,0.69197462]
[1755874385119,0.00014478,116210.0,116200.0,0.86209165]
[1755874385372,0.00014478,116210.0,116200.0,0.6241608]
[1755874385587,0.00014478,116210.0,116200.0,1.22054067]
[1755874386243,0.00014478,116210.0,116200.0,0.45204377]
[1755874386464,0.00014478,116210.0,116200.0,1.20209165]
[1755874386681,0.00014478,116210.0,116200.0,1.21854067]
[1755874386907,0.00014478,116210.0,116200.0,2.39254591]
[1755874387124,0.00014478,116210.0,116200.0,2.39554591]
[1755874387346,0.00014478,116210.0,116200.0,2.39254591]
[1755874387570,0.00014478,116210.0,116200.0,1.39838067]
[1755874387810,0.00014478,116210.0,116200.0,1.22254067]
[1755874388016,0.00014478,116210.0,116200.0,1.22554067]
[1755874388236,0.00014478,116210.0,116200.0,1.21854067]
[1755874388458,0.00014478,116210.0,116200.0,2.21270591]
[1755874388684,0.00014478,116210.0,116200.0,1.22554067]
[1755874389183,0.00014478,116210.0,116200.0,0.43651475]
[1755874389416,0.00014478,116210.0,116200.0,0.09351475]
[1755874389629,0.00014478,116210.0,116200.0,0.09751475]
[1755874389811,0.00014478,116210.0,116200.0,0.09538475]
[1755874390499,0.00014478,116210.0,116200.0,0.10059475]
[1755874390720,0.00220478,116210.0,116200.0,0.09138475]
[1755874390936,0.00014478,116210.0,116200.0,0.68989462]
[1755874391153,0.00014478,116210.0,116200.0,0.69197462]
[1755874391370,0.00014478,116210.0,116200.0,0.68897462]
[1755874391588,0.00014478,116210.0,116200.0,0.09259475]
[1755874391809,0.00014478,116210.0,116200.0,0.68789462]
[1755874392026,0.00014478,116210.0,116200.0,0.68576462]
[1755874392257,0.00220478,116210.0,116200.0,0.08938475]
[1755874392480,0.00541478,116210.0,116200.0,0.08938475]
[1755874392699,0.00220478,116210.0,116200.0,0.09238475]
[1755874392913,0.00541478,116210.0,116200.0,0.09238475]
[1755874393141,0.00014478,116210.0,116200.0,0.08938475]
[1755874393367,0.00014478,116210.0,116200.0,0.09151475]
[1755874393604,0.00014478,116210.0,116200.0,0.08938475]
[1755874393834,0.00014478,116210.0,116200.0,0.68804608]
[1755874394054,0.00014478,116210.0,116200.0,0.68689462]
[1755874394475,0.00014478,116210.0,116200.0,0.09051475]
[1755874394695,0.00014478,116210.0,116200.0,0.09053621]
[1755874395346,0.00014478,116210.0,116200.0,0.68891608]
[1755874395602,0.00014478,116210.0,116200.0,0.09351475]
[1755874395810,0.00014478,116210.0,116200.0,0.09566621]
[1755874396455,0.00014478,116210.0,116200.0,0.69512608]
[1755874396667,0.00014478,116210.0,116200.0,0.86509165]
[1755874397139,0.00014478,116210.0,116200.0,0.26871178]
[1755874397354,0.00014478,116210.0,116200.0,2.39242591]
[1755874397827,1.02748348,116250.0,116240.0,0.59637987]
[1755874398052,1.02762834,116250.0,116240.0,0.68326462]
[1755874398273,1.02762834,116250.0,116240.0,0.68527462]
[1755874398493,1.02762834,116250.0,116240.0,0.86034243]
[1755874398719,1.02762834,116250.0,116240.0,1.21779145]
[1755874398937,1.02762834,116250.0,116240.0,1.30235906]
[1755874400930,1.02962834,116250.0,116240.0,0.65997334]
[1755874401383,1.02762834,116250.0,116240.0,1.34192082]
[1755874401568,1.02762834,116250.0,116240.0,0.83761334]
[1755874403345,1.02762834,116250.0,116240.0,1.51856082]
[1755874404869,1.02762834,116250.0,116240.0,1.51555082]
[1755874405081,1.02762834,116250.0,116240.0,1.14839399]
[1755874405332,1.52762834,116250.0,116240.0,1.5010718]
[1755874405799,1.52762834,116250.0,116240.0,1.51852082]
[1755874407067,1.52762834,116250.0,116240.0,0.83757334]
[1755874407283,1.52762834,116250.0,116240.0,1.51852082]
[1755874407495,1.52762834,116250.0,116240.0,1.51752082]
[1755874408373,1.52762834,116250.0,116240.0,0.86542934]
[1755874408582,1.52762834,116250.0,116240.0,1.54537682]
[1755874408789,1.52762834,116250.0,116240.0,1.54837682]
[1755874409709,1.52762834,116250.0,116240.0,1.37277682]
[1755874409928,1.52762834,116250.0,116240.0,1.54829682]
[1755874410147,1.52762834,116250.0,116240.0,0.86734934]
[1755874410370,1.52762834,116250.0,116240.0,1.54528682]
[1755874410597,1.52762834,116250.0,116240.0,1.54829682]
[1755874411053,1.52762834,116250.0,116240.0,1.54839087]
[1755874412244,1.52762834,116250.0,116240.0,1.81208087]
[1755874412892,1.52762834,116250.0,116240.0,1.81509087]
[1755874414120,1.52762834,116250.0,116240.0,1.81208087]
[1755874414337,1.52762834,116250.0,116240.0,1.81200087]
[1755874414597,1.52762834,116250.0,116240.0,1.62017393]
[1755874415705,1.52962834,116250.0,116240.0,0.9835071]
[1755874415927,1.52962834,116250.0,116240.0,1.33096491]
[1755874416242,1.52962834,116250.0,116240.0,0.67471251]
[1755874416463,1.53259834,116250.0,116240.0,1.1589071]
[1755874416908,1.52962834,116250.0,116240.0,1.33096491]
[1755874417343,1.52762834,116250.0,116240.0,1.33297491]
[1755874417569,1.52762834,116250.0,116240.0,1.32997491]
[1755874417783,1.52762834,116250.0,116240.0,1.32697491]
[1755874417995,1.52762834,116250.0,116240.0,1.32897491]
[1755874418223,1.52762834,116250.0,116240.0,1.34842393]
[1755874418434,1.52762834,116250.0,116240.0,1.35143393]
[1755874418911,1.52762834,116250.0,116240.0,1.34838393]
[1755874419352,1.52762834,116250.0,116240.0,0.86518934]
[1755874419574,1.52962834,116250.0,116240.0,1.17101393]
[1755874419787,1.52762834,116250.0,116240.0,1.34838393]
[1755874420025,1.52762834,116250.0,116240.0,1.35139393]
[1755874421774,1.52762834,116250.0,116240.0,0.86518934]
[1755874421987,1.52762834,116250.0,116240.0,1.35139393]
[1755874422629,1.52762834,116250.0,116240.0,1.34838393]
[1755874422852,1.52962834,116250.0,116240.0,1.34838393]
[1755874423068,1.52762834,116250.0,116240.0,1.34838393]
[1755874423581,1.52962834,116250.0,116240.0,1.34838393]
[1755874424131,1.53259834,116250.0,116240.0,1.34633393]
[1755874424349,1.53259834,116250.0,116240.0,0.11674075]
[1755874424571,1.53259834,116250.0,116240.0,0.75129787]
[1755874424812,1.53259834,116250.0,116240.0,0.26294256]
[1755874425024,1.53259834,116250.0,116240.0,0.09088475]
[1755874425250,1.53259834,116250.0,116240.0,0.08888475]
[1755874425465,1.53259834,116250.0,116240.0,0.002]
[1755874425891,1.53259834,116250.0,116240.0,0.003]
[1755874426106,1.53259834,116250.0,116240.0,0.001]
[1755874426516,1.53259834,116250.0,116240.0,0.002]
[1755874426738,1.70787834,116250.0,116240.0,0.08888475]
[1755874426952,1.70787834,116250.0,116240.0,0.57408934]
[1755874427166,1.70787834,116250.0,116240.0,0.57308934]
[1755874427380,1.70787834,116250.0,116240.0,0.74514715]
[1755874427598,1.70787834,116250.0,116240.0,0.08688475]
[1755874430669,1.70787834,116250.0,116240.0,0.57524006]
[1755874430888,1.70787834,116250.0,116240.0,0.57308934]
[1755874431107,1.53259834,116250.0,116240.0,0.74514715]
[1755874431284,1.52962834,116250.0,116240.0,0.57308934]
[1755874431540,1.52962834,116250.0,116240.0,0.74514715]
[1755874431759,1.52762834,116250.0,116240.0,0.92238715]
[1755874433051,1.02762834,116250.0,116240.0,0.42238715]
[1755874433268,1.02762834,116250.0,116240.0,0.85856971]
[1755874433703,1.03260834,116250.0,116240.0,0.5092719]
[1755874433909,1.03260834,116250.0,116240.0,0.6845519]
[1755874434356,1.03260834,116250.0,116240.0,0.5092719]
[1755874435312,1.03260834,116250.0,116240.0,0.57308934]
[1755874435753,1.03260834,116250.0,116240.0,0.74514715]
[1755874435953,1.20286834,116250.0,116240.0,0.74710715]
[1755874436562,1.20784834,116250.0,116240.0,0.57308934]
[1755874437040,1.20784834,116250.0,116240.0,0.08688475]
[1755874437584,1.20784834,116250.0,116240.0,0.57308934]
[1755874438238,1.20784834,116250.0,116220.0,0.365861]
[1755874438413,1.20784834,116250.0,116230.0,0.57308934]
[1755874438414,0.17524,116240.0,116230.0,0.57308934]
[1755874438851,0.18022,116240.0,116230.0,0.57308934]
[1755874440230,0.18022,116240.0,116230.0,0.57408934]
[1755874440445,0.18022,116240.0,116230.0,0.001]
[1755874440650,0.18022,116240.0,116230.0,0.002]
[1755874440855,0.18022,116240.0,116230.0,0.48820459]
[1755874441072,0.18022,116240.0,116230.0,0.002]
[1755874441275,0.18022,116240.0,116230.0,0.001]
[1755874441956,0.17722,116240.0,116230.0,0.75027285]
[1755874442155,0.17722,116240.0,116230.0,0.57604934]
[1755874442366,0.18022,116240.0,116230.0,0.08788475]
[1755874442569,0.18022,116240.0,116230.0,0.001]
[1755874442770,0.18022,116240.0,116230.0,0.48620459]
[1755874443198,0.17524,116240.0,116230.0,0.6602372]
[1755874443405,0.17524,116240.0,116230.0,0.74712195]
[1755874443649,1.20282834,116250.0,116240.0,0.17205781]
[1755874443865,1.20282834,116250.0,116240.0,0.74710715]
[1755874444081,1.20780834,116250.0,116240.0,0.08688475]
[1755874444824,1.20680834,116250.0,116240.0,0.57308934]
[1755874445055,1.20780834,116250.0,116240.0,0.57308934]
[1755874445288,1.20780834,116250.0,116230.0,0.48620459]
[1755874445523,1.20480834,116250.0,116240.0,0.001]
[1755874445983,1.20780834,116250.0,116240.0,0.001]
[1755874446505,1.4667361,116250.0,116240.0,0.001]
[1755874446752,1.8067361,116250.0,116240.0,0.001]
[1755874446949,1.82418512,116250.0,116240.0,0.001]
[1755874447157,1.83765466,116250.0,116240.0,0.001]
[1755874447360,1.66561165,116250.0,116240.0,0.001]
[1755874447580,0.53810995,116240.0,116200.0,0.0005]
[1755874447788,0.00198,116210.0,116200.0,0.0005]
[1755874448005,0.18014,116210.0,116200.0,0.0005]
[1755874449224,0.18214,116210.0,116200.0,0.0005]
[1755874450081,0.19561144,116210.0,116200.0,0.0005]
[1755874450283,0.18214,116210.0,116200.0,0.0005]
[1755874451136,0.17914,116210.0,116200.0,0.48670459]
[1755874451352,0.17716,116210.0,116200.0,0.74766637]
[1755874451617,0.002,116210.0,116200.0,0.75068637]
[1755874451957,0.002,116210.0,116200.0,0.75107391]
[1755874452181,0.002,116210.0,116200.0,1.77027506]
[1755874452407,1.02748348,116250.0,116240.0,0.17205781]
[1755874452640,1.02762834,116250.0,116240.0,0.75266541]
[1755874452780,1.02762834,116250.0,116240.0,1.09051469]
[1755874453312,1.02762834,116250.0,116240.0,0.61454971]
[1755874453514,1.02762834,116250.0,116240.0,0.4394719]
[1755874453721,1.02762834,116250.0,116240.0,0.0975119]
[1755874454519,1.03260834,116250.0,116240.0,0.0975119]
[1755874454723,1.03260834,116250.0,116220.0,0.025861]
[1755874454924,0.17516,116240.0,116230.0,0.08688475]
[1755874455151,0.17516,116240.0,116230.0,0.25895736]
[1755874455358,1.20274834,116250.0,116240.0,0.17205781]
[1755874455555,1.02762834,116250.0,116240.0,0.17401781]
[1755874455881,1.02762834,116250.0,116240.0,0.66564994]
[1755874456034,1.02762834,116250.0,116240.0,0.74553469]
[1755874456239,1.02960834,116250.0,116240.0,0.26194256]
[1755874456444,1.02762834,116250.0,116240.0,0.75049469]
[1755874456822,1.02762834,116250.0,116240.0,0.74749469]
[1755874457236,1.02762834,116250.0,116240.0,0.26090256]
[1755874457446,1.02762834,116250.0,116240.0,0.74749469]
[1755874457653,1.02762834,116250.0,116240.0,0.26094256]
[1755874457859,1.02962834,116250.0,116240.0,0.57551688]
[1755874458073,1.02962834,116250.0,116240.0,0.08892475]
[1755874458276,1.02762834,116250.0,116240.0,0.74970469]
[1755874458729,1.02762834,116250.0,116240.0,0.08892475]
[1755874458967,1.02762834,116250.0,116240.0,0.26098256]
[1755874459172,1.02762834,116250.0,116240.0,0.26311256]
[1755874459372,1.02762834,116250.0,116240.0,0.74970469]
[1755874459727,1.02762834,116250.0,116240.0,0.75470469]
[1755874460140,1.02762834,116250.0,116240.0,0.75257469]
[1755874460345,1.02762834,116250.0,116240.0,0.75470469]
[1755874460770,1.02762834,116250.0,116240.0,0.75781469]
[1755874460978,1.02762834,116250.0,116240.0,0.75470469]
[1755874461387,1.02762834,116250.0,116240.0,0.75559688]
[1755874461593,1.02962834,116250.0,116240.0,0.58051688]
[1755874461920,1.03283834,116250.0,116240.0,0.09392475]
[1755874462139,1.03283834,116250.0,116240.0,0.58051688]
[1755874462345,1.02962834,116250.0,116240.0,0.75257469]
[1755874462563,1.02962834,116250.0,116240.0,0.26598256]
[1755874462785,1.03283834,116250.0,116240.0,0.09392475]
[1755874462988,1.02962834,116250.0,116240.0,0.09392475]
[1755874463195,1.03283834,116250.0,116240.0,0.58051688]
[1755874464124,1.03283834,116250.0,116240.0,0.09392475]
[1755874464535,1.03283834,116250.0,116240.0,0.58051688]
[1755874465392,1.03283834,116250.0,116240.0,0.09392475]
[1755874465603,1.03283834,116250.0,116240.0,0.58051688]
[1755874465823,1.03283834,116250.0,116240.0,0.09392475]
[1755874466031,1.03283834,116250.0,116240.0,0.00704]
[1755874467807,1.45972309,116250.0,116240.0,0.00704]
[1755874468024,1.74210974,116250.0,116240.0,0.00204]
[1755874468245,1.83455876,116250.0,116240.0,0.00204]
[1755874468494,1.83455876,116250.0,116240.0,0.00404]
[1755874468495,1.66251575,116250.0,116240.0,0.00404]
[1755874468708,1.66251575,116250.0,116240.0,0.00204]
[1755874468923,1.66251575,116250.0,116240.0,4e-05]
[1755874468924,1.54186622,116250.0,116240.0,4e-05]
[1755874469139,1.45972309,116250.0,116240.0,4e-05]
[1755874469354,1.45972309,116250.0,116240.0,0.00104]
[1755874469798,1.45972309,116250.0,116240.0,4e-05]
[1755874470225,1.47619318,116250.0,116240.0,4e-05]
[1755874470431,1.46272309,116250.0,116240.0,4e-05]
[1755874470855,1.63864309,116250.0,116240.0,4e-05]
[1755874471107,1.55175834,116250.0,116240.0,4e-05]
[1755874471307,1.55175834,116250.0,116240.0,0.48663213]
[1755874471308,1.21375834,116250.0,116240.0,0.48663213]
[1755874471514,1.21375834,116250.0,116240.0,4e-05]
[1755874471721,1.21175834,116250.0,116240.0,4e-05]
[1755874471931,1.20875834,116250.0,116240.0,4e-05]
[1755874472416,1.20975834,116250.0,116240.0,4e-05]
[1755874472863,1.20975834,116250.0,116240.0,0.00217]
[1755874472864,1.20454834,116250.0,116240.0,0.00217]
[1755874473071,1.02862834,116250.0,116240.0,0.48876213]
[1755874473315,1.02862834,116250.0,116240.0,0.00217]
[1755874473512,1.03062834,116250.0,116240.0,4e-05]
[1755874473965,1.02762834,116250.0,116240.0,0.48663213]
[1755874474386,1.02762834,116250.0,116240.0,0.48876213]
[1755874474563,1.02762834,116250.0,116240.0,0.75081469]
[1755874474802,1.02762834,116250.0,116240.0,0.09105475]
[1755874475025,1.02762834,116250.0,116240.0,0.57764688]
[1755874475250,1.02762834,116250.0,116240.0,0.09105475]
[1755874475453,1.02762834,116250.0,116240.0,0.57764688]
[1755874475897,1.02762834,116250.0,116240.0,0.57864688]
[1755874476098,1.02762834,116250.0,116240.0,0.61702645]
[1755874476757,1.02762834,116250.0,116240.0,0.78908426]
[1755874477687,1.02762834,116250.0,116240.0,1.27878639]
[1755874478154,1.02762834,116250.0,116240.0,0.79219426]
[1755874478593,1.02762834,116250.0,116240.0,0.81705326]
[1755874478833,1.02762834,116250.0,116240.0,0.32846113]
[1755874479083,1.02762834,116250.0,116240.0,0.82405326]
[1755874479552,1.02762834,116250.0,116240.0,0.15929332]
[1755874479773,1.02762834,116250.0,116240.0,0.64588545]
[1755874480271,1.02762834,116250.0,116240.0,0.64988545]
[1755874480526,1.02762834,116250.0,116240.0,0.82194326]
[1755874480760,1.02762834,116250.0,116240.0,0.82505326]
[1755874481301,1.02762834,116250.0,116240.0,1.16505326]
[1755874481526,1.02762834,116250.0,116240.0,1.15505326]
[1755874481737,1.02762834,116250.0,116240.0,1.66109441]
[1755874481951,1.02762834,116250.0,116240.0,1.66409441]
[1755874482386,1.02762834,116250.0,116240.0,1.66109441]
[1755874482638,1.02762834,116250.0,116240.0,1.72725441]
[1755874482639,1.01521573,116250.0,116240.0,1.72725441]
[1755874482880,1.01521573,116250.0,116240.0,1.54522115]
[1755874483115,1.01521573,116250.0,116240.0,2.52240541]
[1755874483553,1.01521573,116250.0,116240.0,2.51840541]
[1755874484235,1.01521573,116250.0,116240.0,1.47022115]
[1755874484437,1.01521573,116250.0,116240.0,1.64634115]
[1755874484559,1.01521573,116250.0,116240.0,1.34426615]
[1755874484763,1.01521573,116250.0,116240.0,2.03558841]
[1755874485189,1.01521573,116250.0,116240.0,2.03058841]
[1755874485389,1.01521573,116250.0,116240.0,2.03658841]
[1755874485590,1.01521573,116250.0,116240.0,1.91037441]
[1755874485803,1.01521573,116250.0,116240.0,1.40922326]
[1755874486001,1.01521573,116250.0,116240.0,1.89292539]
[1755874486464,1.01521573,116250.0,116240.0,1.89792539]
[1755874486670,1.01521573,116250.0,116240.0,1.90937441]
[1755874487027,1.01521573,116250.0,116240.0,1.91337441]
[1755874487223,1.01521573,116250.0,116240.0,1.72714441]
[1755874487470,1.01521573,116250.0,116240.0,1.41959228]
[1755874487629,1.01521573,116250.0,116240.0,1.23955228]
[1755874487836,1.01521573,116250.0,116240.0,1.41839228]
[1755874488046,1.01521573,116250.0,116240.0,1.42026228]
[1755874488357,1.01521573,116250.0,116240.0,1.40281326]
[1755874488358,1.01730573,116250.0,116240.0,1.40281326]
[1755874488560,1.01521573,116250.0,116240.0,1.40281326]
[1755874488727,1.01521573,116250.0,116240.0,1.15781326]
[1755874488950,1.01521573,116250.0,116240.0,1.33257326]
[1755874489152,1.01521573,116250.0,116240.0,1.33557326]
[1755874489355,1.02038573,116250.0,116240.0,0.15816332]
[1755874489559,1.02038573,116250.0,116240.0,0.98475545]
[1755874489768,1.02038573,116250.0,116240.0,1.15281326]
[1755874490096,1.02038573,116250.0,116240.0,0.98075545]
[1755874490296,1.01730573,116250.0,116240.0,1.15681326]
[1755874490677,1.01730573,116250.0,116240.0,1.15381326]
[1755874491047,1.01730573,116250.0,116240.0,1.15881326]
[1755874491259,1.02038573,116250.0,116240.0,0.98675545]
[1755874491438,1.02038573,116250.0,116240.0,0.50016332]
[1755874491645,1.02038573,116250.0,116240.0,0.98475545]
[1755874491847,1.02038573,116250.0,116240.0,1.15681326]
[1755874492020,1.02038573,116250.0,116240.0,1.15881326]
[1755874492400,1.01521573,116250.0,116240.0,1.16926228]
[1755874492603,1.01730573,116250.0,116240.0,1.16926228]
[1755874492831,1.02038573,116250.0,116240.0,0.97975545]
[1755874493034,1.02038573,116250.0,116240.0,0.98275545]
[1755874493643,1.19866573,116250.0,116240.0,0.98275545]
[1755874494859,1.19866573,116250.0,116240.0,0.49616332]
[1755874495065,1.19866573,116250.0,116240.0,0.98275545]
[1755874495436,1.01521573,116250.0,116240.0,0.98275545]
[1755874495704,1.19834573,116250.0,116240.0,0.98075545]
[1755874495875,1.19834573,116250.0,116240.0,0.97775545]
[1755874496083,1.19834573,116250.0,116240.0,1.14981326]
[1755874496280,1.19834573,116250.0,116240.0,1.15081326]
[1755874496510,1.19526573,116250.0,116240.0,1.15081326]
[1755874496692,1.19526573,116250.0,116240.0,1.63740539]
[1755874496906,1.19526573,116250.0,116240.0,1.15081326]
[1755874497115,1.19317573,116250.0,116240.0,0.98291545]
[1755874497313,1.19834573,116250.0,116240.0,0.98075545]
[1755874497511,1.19834573,116250.0,116240.0,0.97875545]
[1755874497717,1.01521573,116250.0,116240.0,1.83770441]
[1755874497971,1.01521573,116250.0,116240.0,1.83970441]
[1755874498749,1.01521573,116250.0,116240.0,1.83770441]
[1755874499108,1.01521573,116250.0,116240.0,1.83970441]
[1755874499322,1.01521573,116250.0,116240.0,1.17242228]
[1755874499682,1.01521573,116250.0,116240.0,1.83517441]
[1755874500045,1.01521573,116250.0,116240.0,1.83717441]
[1755874500209,1.01521573,116250.0,116240.0,1.34866228]
[1755874500448,1.19245573,116250.0,116240.0,1.16726228]
[1755874500655,1.19762573,116250.0,116240.0,0.51361234]
[1755874500856,1.19762573,116250.0,116240.0,1.17526228]
[1755874501057,1.19762573,116250.0,116240.0,0.64075545]
[1755874501287,1.19762573,116250.0,116240.0,0.63775545]
[1755874501486,1.19762573,116250.0,116240.0,0.64075545]
[1755874501683,1.19762573,116250.0,116240.0,0.98375545]
[1755874501910,1.19762573,116250.0,116240.0,0.98075545]
[1755874502307,1.19762573,116250.0,116240.0,0.98275545]
[1755874502481,1.19758573,116250.0,116240.0,0.98275545]
[1755874502929,1.09758573,116250.0,116240.0,0.49616332]
[1755874503106,1.09758573,116250.0,116240.0,0.98275545]
[1755874503312,1.09758573,116250.0,116240.0,0.97975545]
[1755874503863,1.09758573,116250.0,116240.0,0.98075545]
[1755874504096,1.09450573,116250.0,116240.0,1.15181326]
[1755874504322,1.09758573,116250.0,116240.0,0.97775545]
[1755874504529,1.09758573,116250.0,116240.0,0.97875545]
[1755874504728,1.09758573,116250.0,116240.0,0.98075545]
[1755874505147,0.91521573,116250.0,116240.0,1.15497326]
[1755874505370,1.09414573,116250.0,116240.0,1.15281326]
[1755874505805,1.09205573,116250.0,116240.0,1.17242228]
[1755874506434,1.09414573,116250.0,116240.0,1.17242228]
[1755874506651,1.09722573,116250.0,116240.0,0.51161234]
[1755874506857,1.09722573,116250.0,116240.0,0.99820447]
[1755874507485,1.09722573,116250.0,116240.0,0.98075545]
[1755874507693,1.09722573,116250.0,116240.0,0.64075545]
[1755874507900,1.09722573,116250.0,116240.0,0.98075545]
[1755874508152,1.09654573,116250.0,116240.0,0.98075545]
[1755874508807,1.09654573,116250.0,116240.0,0.49416332]
[1755874509030,1.09654573,116250.0,116240.0,0.98075545]
[1755874509260,1.09654573,116250.0,116240.0,0.49416332]
[1755874509729,1.09346573,116250.0,116240.0,1.24961545]
[1755874509977,1.09137573,116250.0,116240.0,1.43912228]
[1755874510383,0.91521573,116250.0,116240.0,1.92872441]
[1755874510604,0.91521573,116250.0,116240.0,1.66202441]
[1755874511254,0.91521573,116250.0,116240.0,2.67207341]
[1755874511468,0.91521573,116250.0,116240.0,2.72107341]
[1755874511690,0.91521573,116250.0,116240.0,2.34942341]
[1755874511910,0.91521573,116250.0,116240.0,2.40842341]
[1755874512953,0.91521573,116250.0,116240.0,2.23639585]
[1755874513377,0.91521573,116250.0,116240.0,1.92159985]
[1755874513578,0.91521573,116250.0,116240.0,1.04800015]
[1755874513785,0.91521573,116250.0,116240.0,1.97818441]
[1755874513967,0.91521573,116250.0,116240.0,1.67202441]
[1755874514203,0.91521573,116250.0,116240.0,1.83069539]
[1755874514380,0.91521573,116250.0,116240.0,1.48168539]
[1755874514619,0.91521573,116250.0,116240.0,1.50214441]
[1755874514825,0.91521573,116250.0,116240.0,1.83913441]
[1755874515032,0.91521573,116250.0,116240.0,1.84714441]
[1755874515241,0.91521573,116250.0,116240.0,1.84014441]
[1755874515447,0.91521573,116250.0,116240.0,1.83514441]
[1755874515835,0.91521573,116250.0,116240.0,1.94623341]
[1755874516069,0.91521573,116250.0,116240.0,2.09183341]
[1755874516273,0.91521573,116250.0,116240.0,1.83514441]
[1755874516705,0.91521573,116250.0,116240.0,2.07995741]
[1755874517121,0.91521573,116250.0,116240.0,2.15895741]
[1755874517589,0.91521573,116250.0,116240.0,2.23561285]
[1755874517828,0.90121755,116250.0,116240.0,2.16295741]
[1755874518512,0.90121755,116250.0,116240.0,2.15495741]
[1755874518779,0.33474872,116250.0,116240.0,2.15995741]
[1755874519019,0.0002,116270.0,116260.0,0.52947723]
[1755874519209,0.0002,116270.0,116260.0,2.65471511]
[1755874519471,0.0002,116270.0,116260.0,2.58643211]
[1755874519700,0.0002,116270.0,116260.0,2.40271811]
[1755874520186,0.0002,116270.0,116260.0,1.85623411]
[1755874520641,0.0002,116270.0,116260.0,1.76078411]
[1755874520866,0.0002,116270.0,116260.0,1.72939611]
[1755874521110,0.0002,116270.0,116260.0,1.73339611]
[1755874521328,0.0002,116270.0,116260.0,1.59004311]
[1755874522259,0.0002,116270.0,116260.0,1.59604311]
[1755874522461,0.0002,116270.0,116260.0,1.23075011]
[1755874522753,0.0002,116270.0,116260.0,1.43199711]
[1755874522996,0.0002,116270.0,116260.0,1.43511711]
[1755874523978,0.00219,116270.0,116260.0,0.81015996]
[1755874524180,0.18054,116270.0,116260.0,0.12273175]
[1755874524413,0.18054,116270.0,116260.0,0.60932388]
[1755874524634,0.18054,116270.0,116260.0,0.12273175]
[1755874524837,0.18054,116270.0,116260.0,0.60932388]
[1755874525012,0.18054,116270.0,116260.0,0.60332388]
[1755874525220,0.18054,116270.0,116260.0,0.59932388]
[1755874525395,0.18054,116270.0,116260.0,0.60232388]
[1755874525613,0.18054,116270.0,116260.0,0.47318077]
[1755874525821,0.18054,116270.0,116260.0,0.9597729]
[1755874525988,0.18054,116270.0,116260.0,0.11273175]
[1755874526194,0.18054,116270.0,116260.0,0.08888475]
[1755874526393,0.18054,116270.0,116260.0,0.09088475]
[1755874526616,0.18054,116270.0,116260.0,0.43088475]
[1755874526815,0.18054,116270.0,116260.0,0.42888475]
[1755874527035,0.18054,116270.0,116260.0,0.08888475]
[1755874527211,0.18054,116270.0,116260.0,0.003]
[1755874527613,0.18054,116270.0,116260.0,0.002]
[1755874527840,0.18054,116270.0,116250.0,0.0005]
[1755874528229,0.06907,116260.0,116250.0,0.0005]
[1755874528462,0.07106,116260.0,116250.0,0.0005]
[1755874528673,0.07106,116260.0,116250.0,0.48709213]
[1755874528883,0.07106,116260.0,116250.0,0.0005]